[Event "*** SCC Grand Prix: Titled Tuesday Blitz"]
[Site "Chess.com"]
[Date "2020.07.14"]
[Round "3"]
[White "swayamsm"]
[Black "MIlorenzana271"]
[Result "1/2-1/2"]
[WhiteElo "2608"]
[BlackElo "2387"]
[TimeControl "180+1"]
[EndTime "10:30:43 PDT"]
[Termination "Game drawn by repetition"]

1. d4 {[%clk 0:03:00.9]} 1... Nf6 {[%clk 0:02:59.1]} 2. Nf3 {[%clk 0:03:01.8]}
2... g6 {[%clk 0:02:58.9]} 3. Bg5 {[%clk 0:02:58.4]} 3... Bg7 {[%clk 0:02:58.7]}
4. Nbd2 {[%clk 0:02:58.8]} 4... h6 {[%clk 0:02:57.4]} 5. Bxf6 {[%clk 0:02:56.6]}
5... Bxf6 {[%clk 0:02:55.9]} 6. c3 {[%clk 0:02:57]} 6... d5 {[%clk 0:02:55.2]}
7. e4 {[%clk 0:02:55.7]} 7... dxe4 {[%clk 0:02:55.2]} 8. Nxe4 {[%clk 0:02:56.6]}
8... Bg7 {[%clk 0:02:55.5]} 9. h4 {[%clk 0:02:56.5]} 9... Nd7 {[%clk 0:02:51.7]}
10. h5 {[%clk 0:02:55.8]} 10... g5 {[%clk 0:02:51.4]} 11. Bd3 {[%clk 0:02:55.4]}
11... Nf6 {[%clk 0:02:48.4]} 12. Ng3 {[%clk 0:02:54.8]} 12... e6 {[%clk
0:02:47.5]} 13. Ne5 {[%clk 0:02:54.3]} 13... Nd7 {[%clk 0:02:40.2]} 14. Nf3
{[%clk 0:02:43.4]} 14... b6 {[%clk 0:02:35.2]} 15. Be4 {[%clk 0:02:40.8]} 15...
Rb8 {[%clk 0:02:34.5]} 16. Qa4 {[%clk 0:02:37.4]} 16... a6 {[%clk 0:02:32]} 17.
O-O {[%clk 0:02:25.9]} 17... O-O {[%clk 0:02:28.6]} 18. Rfe1 {[%clk 0:02:22.7]}
18... Nf6 {[%clk 0:02:26.7]} 19. Bc6 {[%clk 0:02:16.9]} 19... b5 {[%clk
0:02:24.7]} 20. Qc2 {[%clk 0:02:15.8]} 20... Qd6 {[%clk 0:02:19.5]} 21. Ne5
{[%clk 0:02:14.4]} 21... Bb7 {[%clk 0:02:18.3]} 22. Bxb7 {[%clk 0:02:12.9]}
22... Rxb7 {[%clk 0:02:18.3]} 23. Rad1 {[%clk 0:02:10.2]} 23... Rbb8 {[%clk
0:02:13.6]} 24. Nd3 {[%clk 0:02:04.2]} 24... a5 {[%clk 0:02:02.6]} 25. Nc5
{[%clk 0:02:02.4]} 25... Rfd8 {[%clk 0:01:56.9]} 26. Re2 {[%clk 0:01:41.2]}
26... a4 {[%clk 0:01:42.6]} 27. Rde1 {[%clk 0:01:36.4]} 27... Re8 {[%clk
0:01:42.2]} 28. a3 {[%clk 0:01:33.3]} 28... c6 {[%clk 0:01:40.8]} 29. Re5 {[%clk
0:01:25.5]} 29... Qd8 {[%clk 0:01:26.9]} 30. R5e2 {[%clk 0:01:21.7]} 30... Nd5
{[%clk 0:01:22.3]} 31. Re4 {[%clk 0:01:14.5]} 31... Nf4 {[%clk 0:01:20.9]} 32.
Qd2 {[%clk 0:01:07.9]} 32... Qd5 {[%clk 0:01:16.3]} 33. Rxf4 {[%clk 0:00:57.9]}
33... gxf4 {[%clk 0:01:14.6]} 34. Qxf4 {[%clk 0:00:58.8]} 34... Qg5 {[%clk
0:01:11.2]} 35. Qf3 {[%clk 0:00:57.1]} 35... Rbc8 {[%clk 0:01:04.1]} 36. Nge4
{[%clk 0:00:52.9]} 36... Qe7 {[%clk 0:01:04]} 37. Qg3 {[%clk 0:00:52.6]} 37...
Red8 {[%clk 0:00:57.2]} 38. Re3 {[%clk 0:00:51.3]} 38... Rd5 {[%clk 0:00:52.2]}
39. Qg4 {[%clk 0:00:49.6]} 39... f5 {[%clk 0:00:49.4]} 40. Qg6 {[%clk
0:00:48.3]} 40... fxe4 {[%clk 0:00:46.8]} 41. Rg3 {[%clk 0:00:41.8]} 41... Rg5
{[%clk 0:00:29.5]} 42. Rxg5 {[%clk 0:00:41.1]} 42... hxg5 {[%clk 0:00:29.9]} 43.
h6 {[%clk 0:00:41.1]} 43... Qf6 {[%clk 0:00:22.8]} 44. Qxg7+ {[%clk 0:00:37]}
44... Qxg7 {[%clk 0:00:22.5]} 45. hxg7 {[%clk 0:00:37.9]} 45... Kxg7 {[%clk
0:00:22.9]} 46. Nxe6+ {[%clk 0:00:26.2]} 46... Kf6 {[%clk 0:00:21.8]} 47. Nc5
{[%clk 0:00:26.2]} 47... Kf5 {[%clk 0:00:21.7]} 48. Kf1 {[%clk 0:00:26.1]} 48...
Rh8 {[%clk 0:00:20.3]} 49. Kg1 {[%clk 0:00:18.9]} 49... g4 {[%clk 0:00:19]} 50.
g3 {[%clk 0:00:17.3]} 50... Rh3 {[%clk 0:00:17.8]} 51. Kg2 {[%clk 0:00:17.3]}
51... Rh7 {[%clk 0:00:17]} 52. Kg1 {[%clk 0:00:16.1]} 52... Re7 {[%clk
0:00:16.6]} 53. Kf1 {[%clk 0:00:12.1]} 53... e3 {[%clk 0:00:17.2]} 54. Ke2
{[%clk 0:00:11.6]} 54... exf2+ {[%clk 0:00:17.4]} 55. Kxf2 {[%clk 0:00:12.5]}
55... Rh7 {[%clk 0:00:17.4]} 56. Kg2 {[%clk 0:00:12.7]} 56... Rh6 {[%clk
0:00:15.9]} 57. Kg1 {[%clk 0:00:12.6]} 57... Rh3 {[%clk 0:00:14.9]} 58. Kg2
{[%clk 0:00:12.8]} 58... Rh7 {[%clk 0:00:14.9]} 59. Kg1 {[%clk 0:00:12.3]} 59...
Re7 {[%clk 0:00:14.8]} 60. Kf2 {[%clk 0:00:11.9]} 60... Kg5 {[%clk 0:00:14.9]}
61. Nd3 {[%clk 0:00:11.5]} 61... Re4 {[%clk 0:00:13.7]} 62. Nb4 {[%clk
0:00:06.2]} 62... Re6 {[%clk 0:00:12.8]} 63. Nd3 {[%clk 0:00:06.7]} 63... Kf5
{[%clk 0:00:12.1]} 64. Nc5 {[%clk 0:00:06.8]} 64... Re7 {[%clk 0:00:11.1]} 65.
Kf1 {[%clk 0:00:07]} 65... Re3 {[%clk 0:00:10.2]} 66. Kf2 {[%clk 0:00:07.4]}
66... Rf3+ {[%clk 0:00:10.4]} 67. Kg2 {[%clk 0:00:07.8]} 67... Kf6 {[%clk
0:00:10.1]} 68. Ne4+ {[%clk 0:00:07.6]} 68... Ke6 {[%clk 0:00:09.4]} 69. Nc5+
{[%clk 0:00:05.3]} 69... Kd5 {[%clk 0:00:09.4]} 70. Nd7 {[%clk 0:00:05.1]} 70...
Rf7 {[%clk 0:00:07]} 71. Ne5 {[%clk 0:00:05]} 71... Rg7 {[%clk 0:00:07.2]} 72.
Kf2 {[%clk 0:00:05.1]} 72... c5 {[%clk 0:00:07.5]} 73. Ke3 {[%clk 0:00:04.8]}
73... cxd4+ {[%clk 0:00:07.7]} 74. cxd4 {[%clk 0:00:05.7]} 74... Rg8 {[%clk
0:00:06.2]} 75. Nd3 {[%clk 0:00:05.6]} 75... Re8+ {[%clk 0:00:05.8]} 76. Ne5
{[%clk 0:00:05.9]} 76... Rxe5+ {[%clk 0:00:05.2]} 77. dxe5 {[%clk 0:00:05.6]}
77... Kxe5 {[%clk 0:00:06.1]} 78. Kd3 {[%clk 0:00:06.5]} 78... Kd5 {[%clk
0:00:07]} 79. Ke3 {[%clk 0:00:05.3]} 79... Ke5 {[%clk 0:00:07.4]} 80. Kd3 {[%clk
0:00:05.6]} 80... Kd5 {[%clk 0:00:07.8]} 81. Ke3 {[%clk 0:00:05.8]} 81... Ke5
{[%clk 0:00:08.1]} 1/2-1/2

[Event "*** SCC Grand Prix: Titled Tuesday Blitz"]
[Site "Chess.com"]
[Date "2020.07.14"]
[Round "3"]
[White "malakismayil"]
[Black "PotapovaM"]
[Result "0-1"]
[WhiteElo "2250"]
[BlackElo "2486"]
[TimeControl "180+1"]
[EndTime "10:30:43 PDT"]
[Termination "PotapovaM won by resignation"]

1. e4 {[%clk 0:03:00.9]} 1... c5 {[%clk 0:03:00.1]} 2. Nf3 {[%clk 0:03:01]} 2...
d6 {[%clk 0:03:00.7]} 3. d4 {[%clk 0:03:00.5]} 3... cxd4 {[%clk 0:03:01.6]} 4.
Nxd4 {[%clk 0:03:01.4]} 4... Nf6 {[%clk 0:03:02.3]} 5. Nc3 {[%clk 0:03:01.6]}
5... a6 {[%clk 0:03:03]} 6. Bc4 {[%clk 0:03:00.4]} 6... e6 {[%clk 0:03:03]} 7.
Be3 {[%clk 0:02:59.2]} 7... Be7 {[%clk 0:03:02.4]} 8. a3 {[%clk 0:02:58.9]} 8...
O-O {[%clk 0:03:01.3]} 9. O-O {[%clk 0:02:59.3]} 9... Qc7 {[%clk 0:03:00.7]} 10.
Bd3 {[%clk 0:02:53.5]} 10... Nc6 {[%clk 0:03:00.1]} 11. Nb3 {[%clk 0:02:48.3]}
11... Ne5 {[%clk 0:02:57]} 12. Qe2 {[%clk 0:02:45.1]} 12... b5 {[%clk
0:02:56.2]} 13. h3 {[%clk 0:02:34.9]} 13... Bb7 {[%clk 0:02:55.8]} 14. Nd2
{[%clk 0:02:30.1]} 14... Rac8 {[%clk 0:02:53.8]} 15. f4 {[%clk 0:02:29.7]} 15...
Nxd3 {[%clk 0:02:44.5]} 16. cxd3 {[%clk 0:02:28.6]} 16... Rfd8 {[%clk
0:02:24.5]} 17. Nf3 {[%clk 0:02:25]} 17... Nd7 {[%clk 0:02:19.3]} 18. Rac1
{[%clk 0:01:50.4]} 18... Qb8 {[%clk 0:02:18.6]} 19. Nd4 {[%clk 0:01:46]} 19...
Bf6 {[%clk 0:02:14.5]} 20. f5 {[%clk 0:01:41.4]} 20... e5 {[%clk 0:01:58.8]} 21.
Nf3 {[%clk 0:01:38.1]} 21... d5 {[%clk 0:01:55.9]} 22. exd5 {[%clk 0:01:33.7]}
22... Qd6 {[%clk 0:01:47.4]} 23. Ng5 {[%clk 0:01:15]} 23... Bxg5 {[%clk
0:01:39.2]} 24. Bxg5 {[%clk 0:01:15.9]} 24... f6 {[%clk 0:01:39]} 25. Be3 {[%clk
0:01:15]} 25... Nb6 {[%clk 0:01:38.5]} 26. Ne4 {[%clk 0:00:59.4]} 26... Qxd5
{[%clk 0:01:22.3]} 27. Bxb6 {[%clk 0:00:56.8]} 27... Re8 {[%clk 0:01:21]} 28.
Rfd1 {[%clk 0:00:40.8]} 28... Kh8 {[%clk 0:01:16.4]} 29. Qe3 {[%clk 0:00:37.8]}
29... Kg8 {[%clk 0:00:52.5]} 30. Rc5 {[%clk 0:00:36]} 30... Qd7 {[%clk
0:00:46.2]} 31. Rdc1 {[%clk 0:00:33.9]} 31... Bc6 {[%clk 0:00:43.5]} 32. Ba5
{[%clk 0:00:27.5]} 32... Kh8 {[%clk 0:00:41.9]} 33. R5c3 {[%clk 0:00:26.7]}
33... h6 {[%clk 0:00:34.5]} 34. Qf2 {[%clk 0:00:25.9]} 34... Kh7 {[%clk
0:00:34.1]} 35. Nc5 {[%clk 0:00:25]} 35... Qd5 {[%clk 0:00:32.2]} 36. Ne4 {[%clk
0:00:24.5]} 36... Qd7 {[%clk 0:00:31.5]} 37. Qc2 {[%clk 0:00:20.2]} 37... Qd4+
{[%clk 0:00:28.1]} 38. Kh2 {[%clk 0:00:16.5]} 38... Bb7 {[%clk 0:00:26.2]} 39.
Qf2 {[%clk 0:00:15.2]} 39... Rxc3 {[%clk 0:00:21.1]} 40. Rxc3 {[%clk 0:00:10.2]}
40... Bxe4 {[%clk 0:00:20.8]} 41. Qxd4 {[%clk 0:00:08.8]} 41... exd4 {[%clk
0:00:21.7]} 42. Rc7 {[%clk 0:00:09.2]} 42... Bxf5 {[%clk 0:00:21]} 43. Rd7
{[%clk 0:00:09.8]} 43... Bxd3 {[%clk 0:00:19.7]} 44. Rxd4 {[%clk 0:00:09.3]}
44... Bc4 {[%clk 0:00:20]} 45. Bc3 {[%clk 0:00:07.5]} 45... Re2 {[%clk
0:00:19.4]} 46. Rd7 {[%clk 0:00:07.4]} 46... Kg8 {[%clk 0:00:18.7]} 47. Rd8+
{[%clk 0:00:07.1]} 47... Kf7 {[%clk 0:00:18.8]} 48. Rd7+ {[%clk 0:00:08]} 48...
Kg6 {[%clk 0:00:19.1]} 49. Kg3 {[%clk 0:00:07.3]} 49... Bf7 {[%clk 0:00:16.6]}
50. Kf3 {[%clk 0:00:06.3]} 50... Re8 {[%clk 0:00:16.7]} 51. Rd6 {[%clk
0:00:06.5]} 51... h5 {[%clk 0:00:16.5]} 52. Rxa6 {[%clk 0:00:06.2]} 52... Bc4
{[%clk 0:00:14.7]} 53. Rd6 {[%clk 0:00:05.8]} 53... h4 {[%clk 0:00:14.3]} 54.
Bd4 {[%clk 0:00:04.3]} 54... Re2 {[%clk 0:00:13]} 55. Bc3 {[%clk 0:00:04.5]}
55... Rc2 {[%clk 0:00:13.1]} 56. Rd4 {[%clk 0:00:04.7]} 56... Bf1 {[%clk
0:00:11.6]} 57. Rg4+ {[%clk 0:00:03.8]} 57... Kf7 {[%clk 0:00:12]} 58. Bd4
{[%clk 0:00:01.4]} 58... g5 {[%clk 0:00:11.2]} 59. Bc3 {[%clk 0:00:02.3]} 59...
Kg6 {[%clk 0:00:10.7]} 60. Rd4 {[%clk 0:00:02.1]} 60... Bxg2+ {[%clk 0:00:10.2]}
61. Ke3 {[%clk 0:00:03]} 61... Bxh3 {[%clk 0:00:10.8]} 62. Rd6 {[%clk
0:00:03.9]} 62... Kg7 {[%clk 0:00:07.4]} 63. Rxf6 {[%clk 0:00:04.8]} 63... Rxc3+
{[%clk 0:00:07.2]} 64. bxc3 {[%clk 0:00:04.9]} 64... Kxf6 {[%clk 0:00:08.1]} 65.
c4 {[%clk 0:00:05.7]} 65... bxc4 {[%clk 0:00:07.9]} 66. a4 {[%clk 0:00:06.6]}
66... Bd7 {[%clk 0:00:08.3]} 67. a5 {[%clk 0:00:06.8]} 67... Bb5 {[%clk
0:00:08.7]} 68. Kd4 {[%clk 0:00:06.4]} 68... h3 {[%clk 0:00:08.9]} 69. Kc5
{[%clk 0:00:06.8]} 69... h2 {[%clk 0:00:09.2]} 70. Kxb5 {[%clk 0:00:07.2]} 70...
h1=Q {[%clk 0:00:09.4]} 71. Kxc4 {[%clk 0:00:08.1]} 71... Qa8 {[%clk 0:00:09.1]}
72. Kb5 {[%clk 0:00:09]} 72... Kf5 {[%clk 0:00:09.5]} 0-1

[Event "*** SCC Grand Prix: Titled Tuesday Blitz"]
[Site "Chess.com"]
[Date "2020.07.14"]
[Round "3"]
[White "WildTricks"]
[Black "MF1966Idrisov"]
[Result "1-0"]
[WhiteElo "2511"]
[BlackElo "2312"]
[TimeControl "180+1"]
[EndTime "10:31:49 PDT"]
[Termination "WildTricks won by checkmate"]

1. e4 {[%clk 0:03:00.9]} 1... d6 {[%clk 0:02:59.2]} 2. d4 {[%clk 0:03:00]} 2...
Nd7 {[%clk 0:02:59.3]} 3. Nc3 {[%clk 0:02:58.2]} 3... e5 {[%clk 0:02:59.3]} 4.
Nf3 {[%clk 0:02:56.8]} 4... Ngf6 {[%clk 0:02:57.9]} 5. Bc4 {[%clk 0:02:56.9]}
5... c6 {[%clk 0:02:55.9]} 6. O-O {[%clk 0:02:56.4]} 6... Be7 {[%clk 0:02:51]}
7. a4 {[%clk 0:02:55.3]} 7... O-O {[%clk 0:02:46.9]} 8. Re1 {[%clk 0:02:54.3]}
8... Qc7 {[%clk 0:02:46]} 9. a5 {[%clk 0:02:46.4]} 9... Re8 {[%clk 0:02:43.7]}
10. h3 {[%clk 0:02:43]} 10... Nf8 {[%clk 0:02:43.2]} 11. Ng5 {[%clk 0:02:37.1]}
11... Ne6 {[%clk 0:02:41.4]} 12. Nxe6 {[%clk 0:02:35.9]} 12... Bxe6 {[%clk
0:02:40.7]} 13. Bxe6 {[%clk 0:02:35.9]} 13... fxe6 {[%clk 0:02:41]} 14. dxe5
{[%clk 0:02:32.6]} 14... dxe5 {[%clk 0:02:41.2]} 15. Qe2 {[%clk 0:02:30.5]}
15... Bc5 {[%clk 0:02:38]} 16. Be3 {[%clk 0:02:25.9]} 16... Qe7 {[%clk
0:02:35.1]} 17. Qc4 {[%clk 0:02:20.5]} 17... Bxe3 {[%clk 0:02:34.5]} 18. Rxe3
{[%clk 0:02:19]} 18... Red8 {[%clk 0:02:30.4]} 19. a6 {[%clk 0:02:14.1]} 19...
Rd4 {[%clk 0:02:23.6]} 20. axb7 {[%clk 0:02:09.1]} 20... Rb8 {[%clk 0:02:22.9]}
21. Qxc6 {[%clk 0:02:08.1]} 21... Rxb7 {[%clk 0:02:20]} 22. b3 {[%clk
0:01:55.8]} 22... Rd6 {[%clk 0:02:11.6]} 23. Qa4 {[%clk 0:01:36.4]} 23... h6
{[%clk 0:01:54.1]} 24. Rae1 {[%clk 0:01:31.9]} 24... Kh7 {[%clk 0:01:51.8]} 25.
g3 {[%clk 0:01:29.8]} 25... Rd4 {[%clk 0:01:50.9]} 26. Qa1 {[%clk 0:01:23.6]}
26... Qc5 {[%clk 0:01:44.9]} 27. Kg2 {[%clk 0:01:16.9]} 27... Rd2 {[%clk
0:01:39.6]} 28. Qc1 {[%clk 0:00:54]} 28... Rbd7 {[%clk 0:01:29.6]} 29. R1e2
{[%clk 0:00:52.2]} 29... R2d4 {[%clk 0:01:19.1]} 30. Qe1 {[%clk 0:00:43.7]}
30... Qc6 {[%clk 0:01:16.3]} 31. Na4 {[%clk 0:00:33.2]} 31... Rd1 {[%clk
0:01:04.2]} 32. Qc3 {[%clk 0:00:31.2]} 32... Qd6 {[%clk 0:00:59.1]} 33. Qb2
{[%clk 0:00:26.7]} 33... Rc7 {[%clk 0:00:53.7]} 34. c4 {[%clk 0:00:25.7]} 34...
Qd4 {[%clk 0:00:52.1]} 35. Qc2 {[%clk 0:00:18.7]} 35... Ra1 {[%clk 0:00:49.4]}
36. Rd3 {[%clk 0:00:17.7]} 36... Rc1 {[%clk 0:00:34.6]} 37. Rxd4 {[%clk
0:00:13.3]} 37... Rxc2 {[%clk 0:00:34.7]} 38. Rxc2 {[%clk 0:00:12.2]} 38... exd4
{[%clk 0:00:34.8]} 39. f3 {[%clk 0:00:10.9]} 39... e5 {[%clk 0:00:34.5]} 40. Rd2
{[%clk 0:00:10]} 40... Rb7 {[%clk 0:00:32.4]} 41. Rd3 {[%clk 0:00:09.7]} 41...
Nd7 {[%clk 0:00:30.5]} 42. f4 {[%clk 0:00:09.5]} 42... Kg6 {[%clk 0:00:27.9]}
43. fxe5 {[%clk 0:00:09.1]} 43... Nxe5 {[%clk 0:00:27.8]} 44. Rxd4 {[%clk
0:00:09.6]} 44... Rxb3 {[%clk 0:00:27.2]} 45. Rd5 {[%clk 0:00:08.4]} 45... Nxc4
{[%clk 0:00:27]} 46. Rc5 {[%clk 0:00:06.9]} 46... Ne3+ {[%clk 0:00:24.8]} 47.
Kf2 {[%clk 0:00:06.5]} 47... Nd1+ {[%clk 0:00:24.3]} 48. Ke2 {[%clk 0:00:05.8]}
48... Nb2 {[%clk 0:00:24.2]} 49. Nxb2 {[%clk 0:00:05]} 49... Rxb2+ {[%clk
0:00:24.5]} 50. Kf3 {[%clk 0:00:05.9]} 50... Ra2 {[%clk 0:00:22.9]} 51. Kg4
{[%clk 0:00:05.8]} 51... a5 {[%clk 0:00:22.9]} 52. Rc6+ {[%clk 0:00:05.4]} 52...
Kf7 {[%clk 0:00:22.1]} 53. Kf5 {[%clk 0:00:05.3]} 53... Rf2+ {[%clk 0:00:21]}
54. Ke5 {[%clk 0:00:05.4]} 54... a4 {[%clk 0:00:19.9]} 55. Ra6 {[%clk
0:00:04.7]} 55... Ra2 {[%clk 0:00:19]} 56. Kf5 {[%clk 0:00:04.5]} 56... a3
{[%clk 0:00:18.4]} 57. Ra7+ {[%clk 0:00:04.4]} 57... Kf8 {[%clk 0:00:16.8]} 58.
Kg6 {[%clk 0:00:04.3]} 58... Rg2 {[%clk 0:00:14]} 59. Rxa3 {[%clk 0:00:04.1]}
59... h5 {[%clk 0:00:12]} 60. Kxh5 {[%clk 0:00:03.4]} 60... Kf7 {[%clk
0:00:11.4]} 61. Kg4 {[%clk 0:00:03.8]} 61... Rg1 {[%clk 0:00:11]} 62. Ra7+
{[%clk 0:00:03.5]} 62... Kg6 {[%clk 0:00:10.5]} 63. Ra6+ {[%clk 0:00:03.5]}
63... Kh7 {[%clk 0:00:11.4]} 64. Kh4 {[%clk 0:00:03.5]} 64... Re1 {[%clk
0:00:11.6]} 65. Re6 {[%clk 0:00:03.3]} 65... Re3 {[%clk 0:00:11.6]} 66. g4
{[%clk 0:00:03.6]} 66... g6 {[%clk 0:00:11.6]} 67. Re7+ {[%clk 0:00:03.7]} 67...
Kg8 {[%clk 0:00:10.5]} 68. Kg5 {[%clk 0:00:04.2]} 68... Kf8 {[%clk 0:00:10.5]}
69. Re6 {[%clk 0:00:03.8]} 69... Rxh3 {[%clk 0:00:10.5]} 70. Kxg6 {[%clk
0:00:04.2]} 70... Rg3 {[%clk 0:00:09.9]} 71. g5 {[%clk 0:00:04.4]} 71... Rg1
{[%clk 0:00:09.8]} 72. Re5 {[%clk 0:00:04.6]} 72... Rg2 {[%clk 0:00:09.1]} 73.
Rf5+ {[%clk 0:00:04.7]} 73... Ke7 {[%clk 0:00:08.4]} 74. Rd5 {[%clk 0:00:05.6]}
74... Ke6 {[%clk 0:00:08.3]} 75. Rf5 {[%clk 0:00:05.6]} 75... Rg4 {[%clk
0:00:08.1]} 76. Rf6+ {[%clk 0:00:05.7]} 76... Ke7 {[%clk 0:00:08.3]} 77. e5
{[%clk 0:00:05.6]} 77... Rh4 {[%clk 0:00:08.5]} 78. e6 {[%clk 0:00:06.5]} 78...
Rh3 {[%clk 0:00:08.6]} 79. Kg7 {[%clk 0:00:06.8]} 79... Rh1 {[%clk 0:00:06.5]}
80. g6 {[%clk 0:00:06.7]} 80... Rg1 {[%clk 0:00:06.8]} 81. Rf7+ {[%clk
0:00:05.7]} 81... Ke8 {[%clk 0:00:06.6]} 82. Rf3 {[%clk 0:00:04.9]} 82... Ke7
{[%clk 0:00:05.7]} 83. Kh7 {[%clk 0:00:04.6]} 83... Rh1+ {[%clk 0:00:05]} 84.
Kg8 {[%clk 0:00:04.6]} 84... Rg1 {[%clk 0:00:05.9]} 85. g7 {[%clk 0:00:04.7]}
85... Ke8 {[%clk 0:00:03.8]} 86. e7 {[%clk 0:00:03.2]} 86... Kxe7 {[%clk
0:00:03.4]} 87. Re3+ {[%clk 0:00:03.6]} 87... Kf6 {[%clk 0:00:03.4]} 88. Kf8
{[%clk 0:00:03.1]} 88... Rxg7 {[%clk 0:00:02]} 89. Rf3+ {[%clk 0:00:03.3]} 89...
Ke6 {[%clk 0:00:02.9]} 90. Kxg7 {[%clk 0:00:03.2]} 90... Ke5 {[%clk 0:00:03.8]}
91. Rf6 {[%clk 0:00:04.1]} 91... Kd5 {[%clk 0:00:03.7]} 92. Kg6 {[%clk 0:00:05]}
92... Ke5 {[%clk 0:00:04.6]} 93. Rf5+ {[%clk 0:00:05.9]} 93... Ke6 {[%clk
0:00:04.5]} 94. Kg5 {[%clk 0:00:06.8]} 94... Kd6 {[%clk 0:00:04.8]} 95. Rf4
{[%clk 0:00:07.7]} 95... Ke6 {[%clk 0:00:05.7]} 96. Kg4 {[%clk 0:00:08.6]} 96...
Ke5 {[%clk 0:00:06]} 97. Kf3 {[%clk 0:00:09.5]} 97... Kd5 {[%clk 0:00:06.8]} 98.
Ke3 {[%clk 0:00:10.4]} 98... Ke5 {[%clk 0:00:07.3]} 99. Re4+ {[%clk 0:00:11.3]}
99... Kf5 {[%clk 0:00:07.1]} 100. Kd3 {[%clk 0:00:12.2]} 100... Kf6 {[%clk
0:00:07.3]} 101. Kd4 {[%clk 0:00:12.8]} 101... Kf5 {[%clk 0:00:08.2]} 102. Kd5
{[%clk 0:00:12.7]} 102... Kf6 {[%clk 0:00:08.3]} 103. Re5 {[%clk 0:00:13]}
103... Kg6 {[%clk 0:00:08]} 104. Ke6 {[%clk 0:00:12.7]} 104... Kg7 {[%clk
0:00:07.9]} 105. Rg5+ {[%clk 0:00:12.7]} 105... Kh6 {[%clk 0:00:07.9]} 106. Rg2
{[%clk 0:00:12.7]} 106... Kh5 {[%clk 0:00:07.9]} 107. Kf6 {[%clk 0:00:12.5]}
107... Kh4 {[%clk 0:00:08.8]} 108. Kf5 {[%clk 0:00:12.2]} 108... Kh3 {[%clk
0:00:09.7]} 109. Rg8 {[%clk 0:00:12.5]} 109... Kh4 {[%clk 0:00:10.6]} 110. Rg7
{[%clk 0:00:12.2]} 110... Kh3 {[%clk 0:00:11.5]} 111. Kf4 {[%clk 0:00:12.4]}
111... Kh4 {[%clk 0:00:12.4]} 112. Rh7# {[%clk 0:00:12.4]} 1-0